Cogmind - Beta 15 @@@ ROGUE MODE // 2025.05.16 @ 12:30:45 Player: ZLD1 Result: Destroyed by OU-68W(R) with Subdweller Laser Performance ------------- Evolutions (0) 0 Regions Visited (2) 400 Robots Destroyed (15) 75 Value Destroyed (475) 475 Prototype IDs (0) 0 Alien Tech Used (0) 0 Bonus (0) 0 TOTAL SCORE: 950 Bonus ------- None Cogmind --------- Core Integrity 0/250 Matter 171/300 Energy 250/250 System Corruption 1% Temperature Cool (6) Movement Walking (120) Location -10/Subcaves Parts ------- > --- POWER (1) -------- Ion Engine > --- PROPULSION (2) --- Aluminum Leg Aluminum Leg > --- UTILITY (2) ------ Small Storage Unit Signal Interpreter > --- WEAPON (2) ------- Light Cannon Light Cannon > --- INVENTORY (8) ---- Aluminum Leg Medium Storage Unit Machine Analyzer Scrap Shield Scrap Shield Fragment (44) Peak State ------------ > --- POWER ------------ Light Nuclear Core > --- PROPULSION ------- Aluminum Leg Aluminum Leg > --- UTILITY ---------- Small Storage Unit Signal Interpreter > --- WEAPON ----------- Assault Rifle Assault Rifle > --- INVENTORY -------- Ion Engine Aluminum Leg Aluminum Leg Light Cannon Light Cannon [Rating: 9] Favorites ----------- Power Ion Engine Engine Ion Engine Power Core Light Nuclear Core Propulsion Aluminum Leg Leg Aluminum Leg Utility Small Storage Unit Storage Small Storage Unit Processor Signal Interpreter Weapon Light Cannon Ballistic Gun Assault Rifle Ballistic Cannon Light Cannon Build | -11 -10 -10 ------- Run | Yrd Mat Sub Slots Evolved . | . . . Power . | . . . Propulsion . | . . . Utility . | . . . Weapon . | . . . Parts Attached 19 | 5 13 1 Power 4 | 1 2 1 Engine 3 | 1 1 1 Core 1 | . 1 . Reactor . | . . . Propulsion 7 | 2 5 . Treads . | . . . Leg 7 | 2 5 . Wheel . | . . . Hover . | . . . Flight . | . . . Utility 4 | 1 3 . Device . | . . . Storage 3 | 1 2 . Processor 1 | . 1 . Hackware . | . . . Protection . | . . . Artifact . | . . . Weapon 4 | 1 3 . Energy Gun . | . . . Energy Cannon . | . . . Ballistic Gun 2 | 1 1 . Ballistic Cannon 2 | . 2 . Launcher . | . . . Special Weapon . | . . . Impact Weapon . | . . . Slashing Weapon . | . . . Piercing Weapon . | . . . Special Melee Weapon . | . . . Unidentified Prototypes . | . . . Parts Lost 6 | . 5 1 Power 3 | . 2 1 Propulsion 1 | . 1 . Utility . | . . . Weapon 2 | . 2 . Highest Loss Streak 3 | . 3 1 To Critical Strikes . | . . . Average Backups 3 | 1 3 3 Power . | . 1 . Propulsion . | . . 1 Utility 1 | . . 2 Weapon . | . . . Tool/Special . | . . . Unused Backups 2 | . . 2 Power . | . . . Propulsion . | . . . Utility 2 | . . 2 Weapon . | . . . Tool/Special . | . . . Average Slot Usage (%) 93 | . 90 99 Engine 8 | . 6 12 Core 4 | . 7 . Leg 27 | . 27 28 Storage 14 | . 14 14 Processor 11 | . 9 14 Ballistic Gun 10 | . 17 . Ballistic Cannon 15 | . 7 28 Peak Build Rating 9 | 5 9 9 Average Rating 7 | 3 7 7 On Entrance 4 | . 5 9 Naked Turns . | . . . Heaviest Build 16 | 12 16 16 Greatest Support 20 | 20 20 20 Greatest Overweight (x) 1 | . 1 . Average Overweight (x) . | . . . Largest Inventory Capacity 15 | 8 15 8 Average Capacity 7 | 7 8 8 Most Carried 6 | 4 6 6 Average Carried 3 | 1 3 4 Final Capacity 8 | 8 8 8 Final Carried 6 | 1 3 6 Class Distribution -------------------- 100% | Mutant Dominant Class ---------------- Mutant | -10/Materials Mutant | -10/Subcaves Resources | -11 -10 -10 ----------- Run | Yrd Mat Sub Matter Collected 663 | 216 322 125 Remotely . | . . . Salvage Created 502 | . 415 87 Parts 27 | . 22 5 Haulers Intercepted . | . . . Recyclers Shooed 1 | . 1 . Parts Field Recycled . | . . . Retrieved Matter . | . . . Parts Self-Destructed 10 | . . 10 Prevented . | . . . Kills | -11 -10 -10 ------- Run | Yrd Mat Sub Combat Hostiles Destroyed 15 | . 12 3 Guns 10 | . 10 . Cannons 5 | . 2 3 Classes Destroyed 3 | . 2 1 Swarmer 3 | . 3 . Grunt 11 | . 9 2 Sentry 1 | . . 1 Best Kill Streak 4 | . 4 2 Combat Bots Only 4 | . 4 2 Max Kills in Single Turn 1 | . 1 1 Gunslinging . | . . . Exploded . | . . . Melee . | . . . Uniques/NPCs Destroyed . | . . . Combat | -11 -10 -10 -------- Run | Yrd Mat Sub Hostile Shots Fired 117 | . 87 30 Missed 25 | . 16 9 Hits 92 | . 71 21 Projectile 92 | . 71 21 Critical Strikes 2 | . 1 1 Damage Taken 1237 | . 767 470 Core 266 | . 122 144 Absorbed by Shields . | . . . Core Remaining (%) 100 | 100 . . Volleys Fired 70 | . 58 12 Largest 2 | . 2 2 Hottest 60 | . 60 60 Shots Fired 122 | . 98 24 Gun 86 | . 86 . Cannon 36 | . 12 24 Launcher . | . . . Special . | . . . Kinetic 122 | . 98 24 Thermal . | . . . Explosive . | . . . Electromagnetic . | . . . Robot Hit Streak 11 | . 9 11 Robot Miss Streak 3 | . 3 1 Penetration Max . | . . . Secondary Targets . | . . . Shots Hit Robots 84 | . 66 18 Core Hits 25 | . 20 5 Critical Kills . | . . . Critical Parts Destroyed . | . . . Critical Strikes 1 | . . 1 Blast 1 | . . 1 Melee Attacks . | . . . Impact . | . . . Slashing . | . . . Piercing . | . . . Sneak Attacks . | . . . Combat Hostiles . | . . . Follow-up Attacks . | . . . Damage Inflicted 1198 | . 859 339 Guns 749 | . 749 . Cannons 449 | . 110 339 Explosions . | . . . Melee . | . . . Ramming . | . . . Kinetic 1198 | . 859 339 Thermal . | . . . Explosive . | . . . Electromagnetic . | . . . Impact . | . . . Slashing . | . . . Piercing . | . . . Highest Corruption 1 | . 1 1 Average Corruption 1 | . 1 1 Corruption Purged . | . . . Corruption Blocked . | . . . Effects 11 | . 6 5 Message Errors 7 | . 4 3 Energy Discharges 3 | . 1 2 Data Loss (minor) 1 | . 1 . Overload Shots . | . . . Overflow Damage . | . . . Projectiles . | . . . Explosions . | . . . Melee . | . . . Knockbacks 6 | . 1 5 Impact . | . . . Kinetic 5 | . 1 4 Secondary 1 | . . 1 Self-Inflicted Damage . | . . . Shots . | . . . Rammed . | . . . Targets Rammed . | . . . Kicked . | . . . Crushed . | . . . Highest Temperature 42 | . 42 8 Average Temperature 11 | . 11 8 Received Heat Transfer 522 | . 372 150 Siege Activations . | . . . Martial Activations . | . . . Shielding Activations . | . . . Robots Disrupted . | . . . Combat Hostiles . | . . . Robots Corrupted . | . . . Combat Hostiles . | . . . Parts Fried . | . . . Impact Corruptions . | . . . Robots Melted . | . . . Combat Hostiles . | . . . Parts Melted . | . . . Heat Transferred . | . . . Parts Sabotaged . | . . . Parts Stolen . | . . . Parts Stripped . | . . . Power Chain Reactions . | . . . Alert | -11 -10 -10 ------- Run | Yrd Mat Sub Maximum Alert Level . | . . . Low Security (%) 100 | 100 100 . Level 1 . | . . . Level 2 . | . . . Level 3 . | . . . Level 4 . | . . . Level 5 . | . . . High Security . | . . . Max Security . | . . . Peak Influence 137 | . 137 . Initial . | . . . Average 42 | . 44 . Influence Increases 400 | . 330 70 Destroy 0b10 Robot/C 300 | . 240 60 Destroy Leader 40 | . 30 10 Lose Combat Pursuer 60 | . 60 . Influence Decreases 400 | . 327 73 Entered New Map 3 | . . 3 Time Decay 347 | . 277 70 Lost Part 50 | . 50 . Squads Dispatched 1 | . 1 . Investigation . | . . . Extermination . | . . . Reinforcement 1 | . 1 . Assault . | . . . Garrison . | . . . Intercept . | . . . Searches Triggered . | . . . Construction Impeded . | . . . Haulers Reinforced . | . . . Active Scanning Responses . | . . . Cargo Convoy Interrupts . | . . . Stealth | -11 -10 -10 --------- Run | Yrd Mat Sub Distress Signals . | . . . Communications Jammed . | . . . Distress Signals . | . . . Times Spotted 29 | . 23 6 Peak Tracking Total 4 | . 4 2 Tactical Retreats 3 | . 3 . Traps | -11 -10 -10 ------- Run | Yrd Mat Sub Traps Triggered 4 | . 1 3 Indirectly . | . . . Trap Hack Attempts . | . . . Triggered . | . . . Disarmed . | . . . Reprogrammed . | . . . Reused . | . . . Traps Extracted . | . . . Installed . | . . . Triggered . | . . . Machines | -11 -10 -10 ---------- Run | Yrd Mat Sub Machines Disabled . | . . . Max in Single Turn . | . . . Machines Repaired . | . . . Machines Dismantled . | . . . Machines Sabotaged . | . . . Overloaded Fab Kills . | . . . Hacking | -11 -10 -10 --------- Run | Yrd Mat Sub Machines Accessed 1 | . . 1 Terminals . | . . . Fabricators . | . . . Repair Stations . | . . . Recycling Units . | . . . Scanalyzers . | . . . Garrison Access . | . . . Total Hacks 5 | . . 5 Successful 5 | . . 5 Failed . | . . . Catastrophic . | . . . Database Lockouts . | . . . Manual . | . . . Terminals . | . . . Fabricators . | . . . Repair Stations . | . . . Recycling Units . | . . . Scanalyzers . | . . . Garrison Access . | . . . Terminal Hacks 5 | . . 5 Record 5 | . . 5 Fabricator Hacks . | . . . Repair Station Hacks . | . . . Recycling Unit Hacks . | . . . Scanalyzer . | . . . Garrison Access Hacks . | . . . Unauthorized Hacks . | . . . Terminals . | . . . Fabricators . | . . . Repair Stations . | . . . Recycling Units . | . . . Scanalyzers . | . . . Garrison Access . | . . . Data Cores Recovered . | . . . Used . | . . . Hacking Detections . | . . . Full Trace Events . | . . . Feedback Events . | . . . Feedback Blocked . | . . . Robot Schematics Acquired . | . . . Robots Built . | . . . Authchips . | . . . Time . | . . . Total Robot Build Rating . | . . . Part Schematics Acquired . | . . . Parts Built . | . . . Authchips . | . . . Time . | . . . Total Part Build Rating . | . . . Parts Repaired . | . . . Time . | . . . Parts Recycled . | . . . Recycled Matter . | . . . Retrieved Matter . | . . . Retrieved Components . | . . . Parts Scanalyzed . | . . . Part Schematics Acquired . | . . . Parts Damaged . | . . . Bothacking | -11 -10 -10 ------------ Run | Yrd Mat Sub Used RIF Installer . | . . . Robots Hacked . | . . . Non-combat . | . . . Combat . | . . . Robot Hacks Applied . | . . . Relay Couplers Released . | . . . Fabnet Peak Effective % . | . . . Robots Rewired . | . . . Allies Hacked . | . . . Hacks Repelled . | . . . Allies | -11 -10 -10 -------- Run | Yrd Mat Sub Total Allies . | . . . Largest Group . | . . . Highest-Rated Group . | . . . Highest-Rated Ally . | . . . Total Orders . | . . . Ally Attacks . | . . . Total Damage . | . . . Kills . | . . . Allies Corrupted . | . . . Allies Melted . | . . . Intel | -11 -10 -10 ------- Run | Yrd Mat Sub Active Infowar (turns) . | . . . Robot Analysis Total . | . . . Derelict Logs Recovered 1 | . . 1 Drone Launches . | . . . Drone Recoveries . | . . . Exploration | -11 -10 -10 ------------- Run | Yrd Mat Sub Turns Passed 1601 | 63 923 615 Spaces Moved 1013 | 52 496 465 Core 14 | 14 . . Treads . | . . . Legs 999 | 38 496 465 Wheels . | . . . Hover . | . . . Flight . | . . . Fastest Speed 50 | 50 120 120 Average Speed 119 | 101 121 120 Slowest Speed 190 | 120 190 120 Overloaded Moves . | . . . Propulsion Burnouts . | . . . Robots Hopped . | . . . Potential Cave-ins . | . . . Cave-ins Triggered . | . . . Exploration Rate (%) 36 | 3 77 29 Regions Visited 2 Branch Regions 1 Pre-discovered Areas 1 | . . 1 Known Exits Taken 1 | . 1 . Unknown Exits Taken 1 | 1 . . Scrap Searched . | . . . Spaces Dug . | . . . Terrain Destroyed . | . . . Melee . | . . . Projectile . | . . . AOE . | . . . Terrain Rammed . | . . . Walls Destroyed . | . . . Machines Disabled . | . . . Actions | -11 -10 -10 --------- Run | Yrd Mat Sub Total 1274 | 62 717 495 Wait 145 | . 131 14 Move 1011 | 51 495 465 Hop . | . . . Pick Up 22 | 6 13 3 Fast Attach . | . . . Attach 13 | 5 7 1 Detach . | . . . Swap 9 | . 9 . Drop 4 | . 4 . Fire 70 | . 58 12 Melee . | . . . Ram . | . . . Kick . | . . . Crush . | . . . Escape Stasis . | . . . Rewire . | . . . Trap . | . . . Miscellaneous . | . . . Route ------- -11/Scrapyard -10/Materials (discovered 5 exits: [*Mat x3] / *Min / *Sub) -10/Subcaves (discovered 2 exits: *Mat x2) History --------- Turn | Location | Event 9 | -11/Scrapyard | Discovered new exit (range 15) 64 | -11/Scrapyard | Entered Materials 308 | -10/Materials | Build established: Mutant 323 | -10/Materials | Discovered new exit (range 14) 422 | -10/Materials | Discovered new exit (range 6) 616 | -10/Materials | Discovered new exit (range 9) 625 | -10/Materials | Identified exit to Mines 767 | -10/Materials | Lost 3 parts (1n2w) 827 | -10/Materials | Discovered new exit (range 13) 980 | -10/Materials | Discovered new exit (range 3) 986 | -10/Materials | Identified exit to Subcaves 987 | -10/Materials | Entered Subcaves 988 | -10/Subcaves | Approached by a straggling Scientist 992 | -10/Subcaves | Core integrity fell below 50% 1138 | -10/Subcaves | Discovered new exit (range 7) 1149 | -10/Subcaves | Identified exit to Materials 1321 | -10/Subcaves | Shifting Twisted Machinery released Spk. Treads 1330 | -10/Subcaves | Shifting Twisted Machinery released Scrap Shield 1348 | -10/Subcaves | Learned location of Zion (-7) 1429 | -10/Subcaves | Visited Clippyterm 1433 | -10/Subcaves | Learned Factory trap positions 1433 | -10/Subcaves | Learned 40 Factory zone layouts 1497 | -10/Subcaves | Core integrity fell below 20% 1506 | -10/Subcaves | Discovered exit to Materials (range 5) 1602 | -10/Subcaves | Destroyed by OU-68W(R) with Subdweller Laser Last Messages --------------- anywhere. 01456_ Triggered Piercing Trap. 01456_ Spikes shoot up from the floor. 01456_ Critical hit (Impale). 01464_ Triggered Piercing Trap. 01464_ Spikes shoot up from the floor. 01464_ Critical hit (Impale). 01467_ Triggered Piercing Trap. 01467_ Spikes shoot up from the floor. 01467_ Critical hit (Impale). 01497_ G-47 Trooper knocked back. 01502_ G-34 Mercenary destroyed. 01503_ G-47 Trooper destroyed. 01506_ Acquired 25 matter. 01506_ EXIT=FOUND: MATERIALS 01512_ Subatomizers dissect the Sml. Laser. 01514_ Imp. Heat Sink fries itself beyond repair. 01592_ OU-68W(R) knocked back. 01595_ T3-BCP(R) knocked back. Map ----- +----------------------------------------------------+ | ??# #?????????????????????????????????????????? | | ??# #?????????????????????????????????????????? | | ??## #?????????????????????????????????????????? | | ??# #?????????????????????????????????????????? | | ??## ##?????????????????????????????????????????? | | ??# #?????????????????????????????????????????? | | ??## #?????????????????????????????????????????? | | ??## #?????????????????????????????????????????? | | ??# #?????????????????????????????????????????? | | ??# ##??????????????????? ???????????????????? | | ??# % #????????????????? # ???????????????????? | | ??#%[ ##???????????????? # #???????????????????? | | ??# ######???###????? ##??????????????????? | | ??# % ##### ##???? ##?????????????????? | | ??## < ## #???? ##????????????????? | | ???### ##### ?????????????????? | | ?????## ## ??????????????????? | | ??????##### ## ???????????????????? | | ??????????## ## #?# ????????????????????? | | ??????##??## # ## ### #?????????????????????? | | ?????## ?## #?????????????????????? | | ?????? ## ###???????????????????? | | ??????# # ### #???????????????????? | | ??????# # ###?## % R ##??????????????????? | | ???????# #????# ###R ##?????????????????? | | ??????## ##???# ##?#@ #?????????????????? | | ????### #???###??# % #?????????????????? | | ????# #????????### #?????????????????? | | ????# ##?????????### #?????????????????? | | ????# ## ### #?????# #?????????????????? | | ????##?## # #??????##?????????????????? | | ????????## # #???????????????????????? | | ?????????# #### #????????????????????? | | ????????## ##??# " ?????????????????????? | | ????????# #???## """## ?????????????????????? | | ????????# ##?????# " #?????????????????????????? | | ????????# #?????? ?????????????????????????? | | ????????# ##??????? ?????????????????????????? | | ????????# #???#???? "??????????????????????? | | ????????# #### ### "??????????????????????? | | ????????# #???????????????????????????? | | ????????## #???????????????????????????? | | ?????????## # ## #??????????????????????????? | | ??????????#######????##??????????????????????????? | | ?????????????????????????????????????????????????? | | ?????????????????????????????????????????????????? | | ?????????????????????????????????????????????????? | | ?????????????????????????????????????????????????? | | ?????????????????????????????????????????????????? | | ?????????????????????????????????????????????????? | +----------------------------------------------------+ Best States ------------- Heat Dissipation 25 Energy Generation 14 Energy Capacity 250 Matter Stores 266 Matter Capacity 300 Sight Range 16 Terrain Scan Density 10 Evasion (%) 55 Item Schematics ----------------- None Robot Schematics ------------------ None Fabricated ------------ Nothing Repaired ---------- Nothing Alien Tech Used ----------------- None Achievements -------------- None Challenges ------------ None Game ------ Seed AccelerationNetworkAxe Manual? 0 Play Time 00:11:16 Cumulative 61.9 hours Start 2025.05.16 @ 12:22:39 End 2025.05.16 @ 12:30:45 Sessions 1 Manual Loads 0 Difficulty Rogue Special Mode None Game No. 145 Rogue 145 Adventurer 0 Explorer 0 Win Type - Total 1 Types 1/0/0/0/0/0/0/0/0/0 Lore% 29 Gallery% 37 Achievement% 33 Wizard Run 0 Options --------- Layout 1 ASCII 0 Keyboard 0 Movement Mouse Keybinds 0 Fullscreen 0 Font 28/SmallcapsGlow Map View 50x35 Zoom Use 0% Tactical HUD 1 Map Filters NONE Filters NONE Steam 1 RUN: f77fe18e-a6e0-4659-8a2b-17abdce17f51